{"text_format":"1","workbook":"xlsx","n_sheets":5,"sheets":["掛け算説明初期シート","２行３列×３行２列","１行３列×３行１列","例題作成方法","Sheet3"],"not_rendered":{"charts":0,"images":0,"macros":1,"external_links":0,"defined_names":0,"comments":0,"pivot_tables":0},"unopened":[],"bounds":{"document_bytes":16777216,"sheet_cells":100000,"rows_first":2000,"rows_last":500,"rows_between":2000,"halvings":0,"cell_chars":16384,"cell_head_chars":4096},"cells_cut":0,"cells_raw":0,"read":"whole","date_system":"1900"}

{"sheet":"掛け算説明初期シート","index":0,"n_rows":163,"n_cols":17,"rows_kept":163,"cut":false,"hidden":true,"merged":[]}
["行列の掛け算を説明します．",null,null,null,"左行数",1,"左列数",1,"右列数",1,null,"Macro",1,null,null,"S11 から右，下方向にかけてサンプル問題を作成します．"]
[null,"注意：青枠内の数値を変更しないこと，レッスンを中断はできません．最初からやり直しになります．",null,null,null,null,null,null,null,null,null,null,null,null,null,"１．行列の行，列数は １ 行目で指定のものを使います．"]
[null,"下の２つの行列の掛け算のやり方を説明します．",null,null,null,null,null,null,null,null,null,null,null,null,null,"２．成分 0 の比率は，左右行列の成分が 0 の比率を決めます．"]
[null,"右の 【レッスン開始】 ボタンを押してください．",null,null,null,null,null,null,null,null,null,null,null,null,null,"３．成分絶対値最大で要素絶対値の最大を決めます，その負数が最小になります．"]
[null,null,null,null,null,null,null,null,null,null,null,null,null,null,null,"４．問題数を負の数にすると，問題数は正符号の数だけ出し，行列をすべて縦方向に出します．LaTeX 形式では負の数にすること"]
["例題",{"$f":"\"左行列（\" & F1 &\" 行 \" &H1&\" 列）\"","v":"左行列（1 行 1 列）"},null,null,null,null,{"$f":"\"左行列（\" & H1 &\" 行 \" &J1&\" 列）\"","v":"左行列（1 行 1 列）"},null,null,null,null,null,null,null,null,"５．乱数初期値を 1 以上に設定すると，それに従った乱数で問題を作成します．"]
[]
[]
[]
[null,null,null,null,null,null,null,null,null,null,null,null,null,null,null,"問題作成時オプション"]
[null,null,null,null,null,null,null,null,null,null,null,null,null,null,null,"成分 0 の比率（％）",5]
["説明",null,null,null,null,null,null,null,null,null,null,null,null,null,null,"成分絶対値最大",5]
[null,null,null,null,null,null,null,null,null,null,null,null,null,null,null,"問題作成数",5]
[null,null,null,null,null,null,null,null,null,null,null,null,null,null,null,"乱数初期値",0]
[null,null,null,null,null,null,null,null,null,null,null,null,null,null,null,"問題開始文字列"]
[null,null,null,null,null,null,null,null,null,null,null,null,null,null,null,"問題番号左文字列","問題（"]
[null,null,null,null,null,null,null,null,null,null,null,null,null,null,null,"問題番号右文字列","）"]
[null,null,null,null,null,null,null,null,null,null,null,null,null,null,null,"左行列開始文字列１"]
[null,null,null,null,null,null,null,null,null,null,null,null,null,null,null,"左行列開始文字列２","左行列"]
[null,null,null,null,null,null,null,null,null,null,null,null,null,null,null,"左行列行頭文字列"]
[null,null,null,null,null,null,null,null,null,null,null,null,null,null,null,"左行列成分間文字列"]
[null,null,null,null,null,null,null,null,null,null,null,null,null,null,null,"左行列行末文字列"]
[null,null,null,null,null,null,null,null,null,null,null,null,null,null,null,"左行列最終行末"]
[null,null,null,null,null,null,null,null,null,null,null,null,null,null,null,"左行列終了文字列１"]
["解説をいれる場合，この行の下からいれてください．",null,null,null,null,null,null,null,null,null,null,null,null,null,null,"左行列終了文字列２"]
[null,null,null,null,null,null,null,null,null,null,null,null,null,null,null,"右行列開始文字列１"]
[null,null,null,null,null,null,null,null,null,null,null,null,null,null,null,"右行列開始文字列２","右行列"]
[null,null,null,null,null,null,null,null,null,null,null,null,null,null,null,"右行列行頭文字列"]
[null,null,null,null,null,null,null,null,null,null,null,null,null,null,null,"右行列成分間文字列"]
[null,null,null,null,null,null,null,null,null,null,null,null,null,null,null,"右行列行末文字列"]
[null,null,null,null,null,null,null,null,null,null,null,null,null,null,null,"左行列最終行末"]
[null,null,null,null,null,null,null,null,null,null,null,null,null,null,null,"右行列終了文字列１"]
[null,null,null,null,null,null,null,null,null,null,null,null,null,null,null,"右行列終了文字列２"]
[null,null,null,null,null,null,null,null,null,null,null,null,null,null,null,"答行列開始文字列１"]
[null,null,null,null,null,null,null,null,null,null,null,null,null,null,null,"答行列開始文字列２","答行列"]
[null,null,null,null,null,null,null,null,null,null,null,null,null,null,null,"答行列行頭文字列"]
[null,null,null,null,null,null,null,null,null,null,null,null,null,null,null,"答行列成分間文字列"]
[null,null,null,null,null,null,null,null,null,null,null,null,null,null,null,"答行列行末文字列"]
[null,null,null,null,null,null,null,null,null,null,null,null,null,null,null,"答行列最終行末"]
[null,null,null,null,null,null,null,null,null,null,null,null,null,null,null,"答行列終了文字列１"]
[null,null,null,null,null,null,null,null,null,null,null,null,null,null,null,"答行列終了文字列２"]
[]
[]
[]
[]
[null,null,null,null,null,null,null,null,null,null,null,null,null,null,null,"通常設定例"]
[null,null,null,null,null,null,null,null,null,null,null,null,null,null,null,"成分 0 の比率（％）",5]
[null,null,null,null,null,null,null,null,null,null,null,null,null,null,null,"成分絶対値最大",5]
[null,null,null,null,null,null,null,null,null,null,null,null,null,null,null,"問題作成数",5]
[null,null,null,null,null,null,null,null,null,null,null,null,null,null,null,"乱数初期値",0]
[null,null,null,null,null,null,null,null,null,null,null,null,null,null,null,"問題開始文字列"]
[null,null,null,null,null,null,null,null,null,null,null,null,null,null,null,"問題番号左文字列","問題（"]
[null,null,null,null,null,null,null,null,null,null,null,null,null,null,null,"問題番号右文字列","）"]
[null,null,null,null,null,null,null,null,null,null,null,null,null,null,null,"左行列開始文字列１"]
[null,null,null,null,null,null,null,null,null,null,null,null,null,null,null,"左行列開始文字列２","左行列"]
[null,null,null,null,null,null,null,null,null,null,null,null,null,null,null,"左行列行頭文字列"]
[null,null,null,null,null,null,null,null,null,null,null,null,null,null,null,"左行列成分間文字列"]
[null,null,null,null,null,null,null,null,null,null,null,null,null,null,null,"左行列行末文字列"]
[null,null,null,null,null,null,null,null,null,null,null,null,null,null,null,"左行列最終行末"]
[null,null,null,null,null,null,null,null,null,null,null,null,null,null,null,"左行列終了文字列１"]
[null,null,null,null,null,null,null,null,null,null,null,null,null,null,null,"左行列終了文字列２"]
[null,null,null,null,null,null,null,null,null,null,null,null,null,null,null,"右行列開始文字列１"]
[null,null,null,null,null,null,null,null,null,null,null,null,null,null,null,"右行列開始文字列２","右行列"]
[null,null,null,null,null,null,null,null,null,null,null,null,null,null,null,"右行列行頭文字列"]
[null,null,null,null,null,null,null,null,null,null,null,null,null,null,null,"右行列成分間文字列"]
[null,null,null,null,null,null,null,null,null,null,null,null,null,null,null,"右行列行末文字列"]
[null,null,null,null,null,null,null,null,null,null,null,null,null,null,null,"左行列最終行末"]
[null,null,null,null,null,null,null,null,null,null,null,null,null,null,null,"右行列終了文字列１"]
[null,null,null,null,null,null,null,null,null,null,null,null,null,null,null,"右行列終了文字列２"]
[null,null,null,null,null,null,null,null,null,null,null,null,null,null,null,"答行列開始文字列１"]
[null,null,null,null,null,null,null,null,null,null,null,null,null,null,null,"答行列開始文字列２","答行列"]
[null,null,null,null,null,null,null,null,null,null,null,null,null,null,null,"答行列行頭文字列"]
[null,null,null,null,null,null,null,null,null,null,null,null,null,null,null,"答行列成分間文字列"]
[null,null,null,null,null,null,null,null,null,null,null,null,null,null,null,"答行列行末文字列"]
[null,null,null,null,null,null,null,null,null,null,null,null,null,null,null,"答行列最終行末"]
[null,null,null,null,null,null,null,null,null,null,null,null,null,null,null,"答行列終了文字列１"]
[null,null,null,null,null,null,null,null,null,null,null,null,null,null,null,"答行列終了文字列２"]
[]
[]
[]
[]
[]
[]
[]
[]
[null,null,null,null,null,null,null,null,null,null,null,null,null,null,null,"LaTeX 用設定例","上にコピーして使ってください"]
[null,null,null,null,null,null,null,null,null,null,null,null,null,null,null,"成分 0 の比率（％）",5]
[null,null,null,null,null,null,null,null,null,null,null,null,null,null,null,"成分絶対値最大",5]
[null,null,null,null,null,null,null,null,null,null,null,null,null,null,null,"問題作成数",-5]
[null,null,null,null,null,null,null,null,null,null,null,null,null,null,null,"乱数初期値",0]
[null,null,null,null,null,null,null,null,null,null,null,null,null,null,null,"問題開始文字列",{"$f":"\"% problem (seed \" &$Q$14&\")\"","v":"% problem (seed 0)"}]
[null,null,null,null,null,null,null,null,null,null,null,null,null,null,null,"問題番号左文字列","{\\bf 問題"]
[null,null,null,null,null,null,null,null,null,null,null,null,null,null,null,"問題番号右文字列","}"]
[null,null,null,null,null,null,null,null,null,null,null,null,null,null,null,"左行列開始文字列１","% left"]
[null,null,null,null,null,null,null,null,null,null,null,null,null,null,null,"左行列開始文字列２",{"$f":"\"\\[\\left[\\begin{array}{*{\" & $H$1 & \"}{r}}\"","v":"\\[\\left[\\begin{array}{*{1}{r}}"}]
[null,null,null,null,null,null,null,null,null,null,null,null,null,null,null,"左行列行頭文字列"]
[null,null,null,null,null,null,null,null,null,null,null,null,null,null,null,"左行列成分間文字列"," & "]
[null,null,null,null,null,null,null,null,null,null,null,null,null,null,null,"左行列行末文字列"," \\\\"]
[null,null,null,null,null,null,null,null,null,null,null,null,null,null,null,"左行列最終行末"]
[null,null,null,null,null,null,null,null,null,null,null,null,null,null,null,"左行列終了文字列１","\\end{array}\\right]"]
[null,null,null,null,null,null,null,null,null,null,null,null,null,null,null,"左行列終了文字列２","%"]
[null,null,null,null,null,null,null,null,null,null,null,null,null,null,null,"右行列開始文字列１","% right"]
[null,null,null,null,null,null,null,null,null,null,null,null,null,null,null,"右行列開始文字列２",{"$f":"\"\\left[\\begin{array}{*{\" & $J$1 & \"}{r}}\"","v":"\\left[\\begin{array}{*{1}{r}}"}]
[null,null,null,null,null,null,null,null,null,null,null,null,null,null,null,"右行列行頭文字列"]
[null,null,null,null,null,null,null,null,null,null,null,null,null,null,null,"右行列成分間文字列"," & "]
[null,null,null,null,null,null,null,null,null,null,null,null,null,null,null,"右行列行末文字列"," \\\\"]
[null,null,null,null,null,null,null,null,null,null,null,null,null,null,null,"左行列最終行末"]
[null,null,null,null,null,null,null,null,null,null,null,null,null,null,null,"右行列終了文字列１","\\end{array}\\right]="]
[null,null,null,null,null,null,null,null,null,null,null,null,null,null,null,"右行列終了文字列２","%"]
[null,null,null,null,null,null,null,null,null,null,null,null,null,null,null,"答行列開始文字列１","% answer"]
[null,null,null,null,null,null,null,null,null,null,null,null,null,null,null,"答行列開始文字列２",{"$f":"\"\\ashow{\\left[\\begin{array}{*{\" & $J$1 & \"}{r}}\"","v":"\\ashow{\\left[\\begin{array}{*{1}{r}}"}]
[null,null,null,null,null,null,null,null,null,null,null,null,null,null,null,"答行列行頭文字列"]
[null,null,null,null,null,null,null,null,null,null,null,null,null,null,null,"答行列成分間文字列"," & "]
[null,null,null,null,null,null,null,null,null,null,null,null,null,null,null,"答行列行末文字列"," \\\\"]
[null,null,null,null,null,null,null,null,null,null,null,null,null,null,null,"答行列最終行末"]
[null,null,null,null,null,null,null,null,null,null,null,null,null,null,null,"答行列終了文字列１","\\end{array}\\right]}\\]"]
[null,null,null,null,null,null,null,null,null,null,null,null,null,null,null,"答行列終了文字列２","%%%%%"]
[]
[null,null,null,null,null,null,null,null,null,null,null,null,null,null,null,"上の定義で作ったものを \\begin{document} の下に張り付け"]
[null,null,null,null,null,null,null,null,null,null,null,null,null,null,null,"コマンド \\ashow の定義を以下のようにして，解答表示を制御します．"]
[null,null,null,null,null,null,null,null,null,null,null,null,null,null,null,"\\long\\def\\ashow#1{}"]
[null,null,null,null,null,null,null,null,null,null,null,null,null,null,null,"\\begin{document}"]
[null,null,null,null,null,null,null,null,null,null,null,null,null,null,null,"（問題）"]
[null,null,null,null,null,null,null,null,null,null,null,null,null,null,null,"とすれば解答なしのバージョンになり，"]
[null,null,null,null,null,null,null,null,null,null,null,null,null,null,null,"\\long\\def\\ashow#1{#1}"]
[null,null,null,null,null,null,null,null,null,null,null,null,null,null,null,"\\begin{document}"]
[null,null,null,null,null,null,null,null,null,null,null,null,null,null,null,"（問題）"]
[null,null,null,null,null,null,null,null,null,null,null,null,null,null,null,"とすれば解答ありのバージョンになります．"]
[]
[]
[null,null,null,null,null,null,null,null,null,null,null,null,null,null,null,"HTML 用設定例","上にコピーして使ってください"]
[null,null,null,null,null,null,null,null,null,null,null,null,null,null,null,"成分 0 の比率（％）",10]
[null,null,null,null,null,null,null,null,null,null,null,null,null,null,null,"成分絶対値最大",3]
[null,null,null,null,null,null,null,null,null,null,null,null,null,null,null,"問題作成数",-5]
[null,null,null,null,null,null,null,null,null,null,null,null,null,null,null,"乱数初期値",0]
[null,null,null,null,null,null,null,null,null,null,null,null,null,null,null,"問題開始文字列",{"$f":"\"<!-- problem (seed \" &$Q$14&\") -->\"","v":"<!-- problem (seed 0) -->"}]
[null,null,null,null,null,null,null,null,null,null,null,null,null,null,null,"問題番号左文字列","<b>問題"]
[null,null,null,null,null,null,null,null,null,null,null,null,null,null,null,"問題番号右文字列",".</b><br>"]
[null,null,null,null,null,null,null,null,null,null,null,null,null,null,null,"左行列開始文字列１","左行列"]
[null,null,null,null,null,null,null,null,null,null,null,null,null,null,null,"左行列開始文字列２","<table cellspacing =\"8\">"]
[null,null,null,null,null,null,null,null,null,null,null,null,null,null,null,"左行列行頭文字列","<tr align=\"right\"><td>"]
[null,null,null,null,null,null,null,null,null,null,null,null,null,null,null,"左行列成分間文字列","</td><td>"]
[null,null,null,null,null,null,null,null,null,null,null,null,null,null,null,"左行列行末文字列","</td></tr>"]
[null,null,null,null,null,null,null,null,null,null,null,null,null,null,null,"左行列最終行末","</td></tr>"]
[null,null,null,null,null,null,null,null,null,null,null,null,null,null,null,"左行列終了文字列１","</table>"]
[null,null,null,null,null,null,null,null,null,null,null,null,null,null,null,"左行列終了文字列２","<br>"]
[null,null,null,null,null,null,null,null,null,null,null,null,null,null,null,"右行列開始文字列１","右行列"]
[null,null,null,null,null,null,null,null,null,null,null,null,null,null,null,"右行列開始文字列２","<table cellspacing =\"8\">"]
[null,null,null,null,null,null,null,null,null,null,null,null,null,null,null,"右行列行頭文字列","<tr align=\"right\"><td>"]
[null,null,null,null,null,null,null,null,null,null,null,null,null,null,null,"右行列成分間文字列","</td><td>"]
[null,null,null,null,null,null,null,null,null,null,null,null,null,null,null,"右行列行末文字列","</td></tr>"]
[null,null,null,null,null,null,null,null,null,null,null,null,null,null,null,"左行列最終行末","</td></tr>"]
[null,null,null,null,null,null,null,null,null,null,null,null,null,null,null,"右行列終了文字列１","</table>"]
[null,null,null,null,null,null,null,null,null,null,null,null,null,null,null,"右行列終了文字列２","<br>"]
[null,null,null,null,null,null,null,null,null,null,null,null,null,null,null,"答行列開始文字列１","答行列"]
[null,null,null,null,null,null,null,null,null,null,null,null,null,null,null,"答行列開始文字列２","<table cellspacing =\"8\">"]
[null,null,null,null,null,null,null,null,null,null,null,null,null,null,null,"答行列行頭文字列","<tr align=\"right\"><td>"]
[null,null,null,null,null,null,null,null,null,null,null,null,null,null,null,"答行列成分間文字列","</td><td>"]
[null,null,null,null,null,null,null,null,null,null,null,null,null,null,null,"答行列行末文字列","</td></tr>"]
[null,null,null,null,null,null,null,null,null,null,null,null,null,null,null,"答行列最終行末","</td></tr>"]
[null,null,null,null,null,null,null,null,null,null,null,null,null,null,null,"答行列終了文字列１","</table>"]
[null,null,null,null,null,null,null,null,null,null,null,null,null,null,null,"答行列終了文字列２","<br>"]
[null,null,null,null,null,null,null,null,null,null,null,null,null,null,null,"左右の 括弧のつけたかなどを工夫する必要があります．"]

{"sheet":"２行３列×３行２列","index":1,"n_rows":162,"n_cols":17,"rows_kept":162,"cut":false,"hidden":false,"merged":[]}
["行列の掛け算を説明します．",null,null,null,"左行数",2,"左列数",3,"右列数",2,null,"Macro",1,null,null,"S11 から右，下方向にかけてサンプル問題を作成します．"]
[null,"注意：青枠内の数値を変更しないこと，レッスンを中断はできません．最初からやり直しになります．",null,null,null,null,null,null,null,null,null,null,null,null,null,"１．行列の行，列数は １ 行目で指定のものを使います．"]
[null,"下の２つの行列の掛け算のやり方を説明します．",null,null,null,null,null,null,null,null,null,null,null,null,null,"２．成分 0 の比率は，左右行列の成分が 0 の比率を決めます．"]
[null,"右の 【レッスン開始】 ボタンを押してください．",null,null,null,null,null,null,null,null,null,null,null,null,null,"３．成分絶対値最大で要素絶対値の最大を決めます，その負数が最小になります．"]
[null,null,null,null,null,null,null,null,null,null,null,null,null,null,null,"４．問題数を負の数にすると，問題数は正符号の数だけ出し，行列をすべて縦方向に出します．LaTeX 形式では負の数にすること"]
["例題",{"$f":"\"左行列（\" & F1 &\" 行 \" &H1&\" 列）\"","v":"左行列（2 行 3 列）"},null,null,null,null,{"$f":"\"左行列（\" & H1 &\" 行 \" &J1&\" 列）\"","v":"左行列（3 行 2 列）"},null,null,null,null,null,null,null,null,"５．乱数初期値を 1 以上に設定すると，それに従った乱数で問題を作成します．"]
[null,-1,-1,2,null,null,-3,3]
[null,-1,2,-1,null,null,3,2]
[null,null,null,null,null,null,2,-2]
[null,null,null,null,null,null,null,null,null,null,null,null,null,null,null,"問題作成時オプション"]
[null,null,null,null,null,null,null,null,null,null,null,null,null,null,null,"成分 0 の比率（％）",5]
["説明",null,null,null,null,null,null,null,null,null,null,null,null,null,null,"成分絶対値最大",3]
[null,null,null,null,null,null,null,null,null,null,null,null,null,null,null,"問題作成数",5]
[null,null,null,null,null,null,null,null,null,null,null,null,null,null,null,"乱数初期値",0]
[null,null,null,null,null,null,null,null,null,null,null,null,null,null,null,"問題開始文字列"]
[null,null,null,null,null,null,null,null,null,null,null,null,null,null,null,"問題番号左文字列","問題（"]
[null,null,null,null,null,null,null,null,null,null,null,null,null,null,null,"問題番号右文字列","）"]
[null,null,null,null,null,null,null,null,null,null,null,null,null,null,null,"左行列開始文字列１"]
[null,null,null,null,null,null,null,null,null,null,null,null,null,null,null,"左行列開始文字列２","左行列"]
[null,null,null,null,null,null,null,null,null,null,null,null,null,null,null,"左行列行頭文字列"]
[null,null,null,null,null,null,null,null,null,null,null,null,null,null,null,"左行列成分間文字列"]
[null,null,null,null,null,null,null,null,null,null,null,null,null,null,null,"左行列行末文字列"]
[null,null,null,null,null,null,null,null,null,null,null,null,null,null,null,"左行列最終行末"]
[null,null,null,null,null,null,null,null,null,null,null,null,null,null,null,"左行列終了文字列１"]
["解説をいれる場合，この行の下からいれてください．",null,null,null,null,null,null,null,null,null,null,null,null,null,null,"左行列終了文字列２"]
[null,null,null,null,null,null,null,null,null,null,null,null,null,null,null,"右行列開始文字列１"]
[null,null,null,null,null,null,null,null,null,null,null,null,null,null,null,"右行列開始文字列２","右行列"]
[null,null,null,null,null,null,null,null,null,null,null,null,null,null,null,"右行列行頭文字列"]
[null,null,null,null,null,null,null,null,null,null,null,null,null,null,null,"右行列成分間文字列"]
[null,null,null,null,null,null,null,null,null,null,null,null,null,null,null,"右行列行末文字列"]
[null,null,null,null,null,null,null,null,null,null,null,null,null,null,null,"左行列最終行末"]
[null,null,null,null,null,null,null,null,null,null,null,null,null,null,null,"右行列終了文字列１"]
[null,null,null,null,null,null,null,null,null,null,null,null,null,null,null,"右行列終了文字列２"]
[null,null,null,null,null,null,null,null,null,null,null,null,null,null,null,"答行列開始文字列１"]
[null,null,null,null,null,null,null,null,null,null,null,null,null,null,null,"答行列開始文字列２","答行列"]
[null,null,null,null,null,null,null,null,null,null,null,null,null,null,null,"答行列行頭文字列"]
[null,null,null,null,null,null,null,null,null,null,null,null,null,null,null,"答行列成分間文字列"]
[null,null,null,null,null,null,null,null,null,null,null,null,null,null,null,"答行列行末文字列"]
[null,null,null,null,null,null,null,null,null,null,null,null,null,null,null,"答行列最終行末"]
[null,null,null,null,null,null,null,null,null,null,null,null,null,null,null,"答行列終了文字列１"]
[null,null,null,null,null,null,null,null,null,null,null,null,null,null,null,"答行列終了文字列２"]
[]
[]
[]
[]
[null,null,null,null,null,null,null,null,null,null,null,null,null,null,null,"通常設定例"]
[null,null,null,null,null,null,null,null,null,null,null,null,null,null,null,"成分 0 の比率（％）",5]
[null,null,null,null,null,null,null,null,null,null,null,null,null,null,null,"成分絶対値最大",5]
[null,null,null,null,null,null,null,null,null,null,null,null,null,null,null,"問題作成数",5]
[null,null,null,null,null,null,null,null,null,null,null,null,null,null,null,"乱数初期値",0]
[null,null,null,null,null,null,null,null,null,null,null,null,null,null,null,"問題開始文字列"]
[null,null,null,null,null,null,null,null,null,null,null,null,null,null,null,"問題番号左文字列","問題（"]
[null,null,null,null,null,null,null,null,null,null,null,null,null,null,null,"問題番号右文字列","）"]
[null,null,null,null,null,null,null,null,null,null,null,null,null,null,null,"左行列開始文字列１"]
[null,null,null,null,null,null,null,null,null,null,null,null,null,null,null,"左行列開始文字列２","左行列"]
[null,null,null,null,null,null,null,null,null,null,null,null,null,null,null,"左行列行頭文字列"]
[null,null,null,null,null,null,null,null,null,null,null,null,null,null,null,"左行列成分間文字列"]
[null,null,null,null,null,null,null,null,null,null,null,null,null,null,null,"左行列行末文字列"]
[null,null,null,null,null,null,null,null,null,null,null,null,null,null,null,"左行列最終行末"]
[null,null,null,null,null,null,null,null,null,null,null,null,null,null,null,"左行列終了文字列１"]
[null,null,null,null,null,null,null,null,null,null,null,null,null,null,null,"左行列終了文字列２"]
[null,null,null,null,null,null,null,null,null,null,null,null,null,null,null,"右行列開始文字列１"]
[null,null,null,null,null,null,null,null,null,null,null,null,null,null,null,"右行列開始文字列２","右行列"]
[null,null,null,null,null,null,null,null,null,null,null,null,null,null,null,"右行列行頭文字列"]
[null,null,null,null,null,null,null,null,null,null,null,null,null,null,null,"右行列成分間文字列"]
[null,null,null,null,null,null,null,null,null,null,null,null,null,null,null,"右行列行末文字列"]
[null,null,null,null,null,null,null,null,null,null,null,null,null,null,null,"左行列最終行末"]
[null,null,null,null,null,null,null,null,null,null,null,null,null,null,null,"右行列終了文字列１"]
[null,null,null,null,null,null,null,null,null,null,null,null,null,null,null,"右行列終了文字列２"]
[null,null,null,null,null,null,null,null,null,null,null,null,null,null,null,"答行列開始文字列１"]
[null,null,null,null,null,null,null,null,null,null,null,null,null,null,null,"答行列開始文字列２","答行列"]
[null,null,null,null,null,null,null,null,null,null,null,null,null,null,null,"答行列行頭文字列"]
[null,null,null,null,null,null,null,null,null,null,null,null,null,null,null,"答行列成分間文字列"]
[null,null,null,null,null,null,null,null,null,null,null,null,null,null,null,"答行列行末文字列"]
[null,null,null,null,null,null,null,null,null,null,null,null,null,null,null,"答行列最終行末"]
[null,null,null,null,null,null,null,null,null,null,null,null,null,null,null,"答行列終了文字列１"]
[null,null,null,null,null,null,null,null,null,null,null,null,null,null,null,"答行列終了文字列２"]
[]
[]
[]
[]
[]
[]
[]
[]
[null,null,null,null,null,null,null,null,null,null,null,null,null,null,null,"LaTeX 用設定例","上にコピーして使ってください"]
[null,null,null,null,null,null,null,null,null,null,null,null,null,null,null,"成分 0 の比率（％）",5]
[null,null,null,null,null,null,null,null,null,null,null,null,null,null,null,"成分絶対値最大",5]
[null,null,null,null,null,null,null,null,null,null,null,null,null,null,null,"問題作成数",-5]
[null,null,null,null,null,null,null,null,null,null,null,null,null,null,null,"乱数初期値",0]
[null,null,null,null,null,null,null,null,null,null,null,null,null,null,null,"問題開始文字列",{"$f":"\"% problem (seed \" &$Q$14&\")\"","v":"% problem (seed 0)"}]
[null,null,null,null,null,null,null,null,null,null,null,null,null,null,null,"問題番号左文字列","{\\bf 問題"]
[null,null,null,null,null,null,null,null,null,null,null,null,null,null,null,"問題番号右文字列","}"]
[null,null,null,null,null,null,null,null,null,null,null,null,null,null,null,"左行列開始文字列１","% left"]
[null,null,null,null,null,null,null,null,null,null,null,null,null,null,null,"左行列開始文字列２",{"$f":"\"\\[\\left[\\begin{array}{*{\" & $H$1 & \"}{r}}\"","v":"\\[\\left[\\begin{array}{*{3}{r}}"}]
[null,null,null,null,null,null,null,null,null,null,null,null,null,null,null,"左行列行頭文字列"]
[null,null,null,null,null,null,null,null,null,null,null,null,null,null,null,"左行列成分間文字列"," & "]
[null,null,null,null,null,null,null,null,null,null,null,null,null,null,null,"左行列行末文字列"," \\\\"]
[null,null,null,null,null,null,null,null,null,null,null,null,null,null,null,"左行列最終行末"]
[null,null,null,null,null,null,null,null,null,null,null,null,null,null,null,"左行列終了文字列１","\\end{array}\\right]"]
[null,null,null,null,null,null,null,null,null,null,null,null,null,null,null,"左行列終了文字列２","%"]
[null,null,null,null,null,null,null,null,null,null,null,null,null,null,null,"右行列開始文字列１","% right"]
[null,null,null,null,null,null,null,null,null,null,null,null,null,null,null,"右行列開始文字列２",{"$f":"\"\\left[\\begin{array}{*{\" & $J$1 & \"}{r}}\"","v":"\\left[\\begin{array}{*{2}{r}}"}]
[null,null,null,null,null,null,null,null,null,null,null,null,null,null,null,"右行列行頭文字列"]
[null,null,null,null,null,null,null,null,null,null,null,null,null,null,null,"右行列成分間文字列"," & "]
[null,null,null,null,null,null,null,null,null,null,null,null,null,null,null,"右行列行末文字列"," \\\\"]
[null,null,null,null,null,null,null,null,null,null,null,null,null,null,null,"左行列最終行末"]
[null,null,null,null,null,null,null,null,null,null,null,null,null,null,null,"右行列終了文字列１","\\end{array}\\right]="]
[null,null,null,null,null,null,null,null,null,null,null,null,null,null,null,"右行列終了文字列２","%"]
[null,null,null,null,null,null,null,null,null,null,null,null,null,null,null,"答行列開始文字列１","% answer"]
[null,null,null,null,null,null,null,null,null,null,null,null,null,null,null,"答行列開始文字列２",{"$f":"\"\\ashow{\\left[\\begin{array}{*{\" & $J$1 & \"}{r}}\"","v":"\\ashow{\\left[\\begin{array}{*{2}{r}}"}]
[null,null,null,null,null,null,null,null,null,null,null,null,null,null,null,"答行列行頭文字列"]
[null,null,null,null,null,null,null,null,null,null,null,null,null,null,null,"答行列成分間文字列"," & "]
[null,null,null,null,null,null,null,null,null,null,null,null,null,null,null,"答行列行末文字列"," \\\\"]
[null,null,null,null,null,null,null,null,null,null,null,null,null,null,null,"答行列最終行末"]
[null,null,null,null,null,null,null,null,null,null,null,null,null,null,null,"答行列終了文字列１","\\end{array}\\right]}\\]"]
[null,null,null,null,null,null,null,null,null,null,null,null,null,null,null,"答行列終了文字列２","%%%%%"]
[]
[null,null,null,null,null,null,null,null,null,null,null,null,null,null,null,"上の定義で作ったものを \\begin{document} の下に張り付け"]
[null,null,null,null,null,null,null,null,null,null,null,null,null,null,null,"コマンド \\ashow の定義を以下のようにして，解答表示を制御します．"]
[null,null,null,null,null,null,null,null,null,null,null,null,null,null,null,"\\long\\def\\ashow#1{}"]
[null,null,null,null,null,null,null,null,null,null,null,null,null,null,null,"\\begin{document}"]
[null,null,null,null,null,null,null,null,null,null,null,null,null,null,null,"（問題）"]
[null,null,null,null,null,null,null,null,null,null,null,null,null,null,null,"とすれば解答なしのバージョンになり，"]
[null,null,null,null,null,null,null,null,null,null,null,null,null,null,null,"\\long\\def\\ashow#1{#1}"]
[null,null,null,null,null,null,null,null,null,null,null,null,null,null,null,"\\begin{document}"]
[null,null,null,null,null,null,null,null,null,null,null,null,null,null,null,"（問題）"]
[null,null,null,null,null,null,null,null,null,null,null,null,null,null,null,"とすれば解答ありのバージョンになります．"]
[]
[]
[null,null,null,null,null,null,null,null,null,null,null,null,null,null,null,"HTML 用設定例","上にコピーして使ってください"]
[null,null,null,null,null,null,null,null,null,null,null,null,null,null,null,"成分 0 の比率（％）",10]
[null,null,null,null,null,null,null,null,null,null,null,null,null,null,null,"成分絶対値最大",3]
[null,null,null,null,null,null,null,null,null,null,null,null,null,null,null,"問題作成数",-5]
[null,null,null,null,null,null,null,null,null,null,null,null,null,null,null,"乱数初期値",0]
[null,null,null,null,null,null,null,null,null,null,null,null,null,null,null,"問題開始文字列",{"$f":"\"<!-- problem (seed \" &$Q$14&\") -->\"","v":"<!-- problem (seed 0) -->"}]
[null,null,null,null,null,null,null,null,null,null,null,null,null,null,null,"問題番号左文字列","<b>問題"]
[null,null,null,null,null,null,null,null,null,null,null,null,null,null,null,"問題番号右文字列",".</b><br>"]
[null,null,null,null,null,null,null,null,null,null,null,null,null,null,null,"左行列開始文字列１","左行列"]
[null,null,null,null,null,null,null,null,null,null,null,null,null,null,null,"左行列開始文字列２","<table cellspacing =\"8\">"]
[null,null,null,null,null,null,null,null,null,null,null,null,null,null,null,"左行列行頭文字列","<tr align=\"right\"><td>"]
[null,null,null,null,null,null,null,null,null,null,null,null,null,null,null,"左行列成分間文字列","</td><td>"]
[null,null,null,null,null,null,null,null,null,null,null,null,null,null,null,"左行列行末文字列","</td></tr>"]
[null,null,null,null,null,null,null,null,null,null,null,null,null,null,null,"左行列最終行末","</td></tr>"]
[null,null,null,null,null,null,null,null,null,null,null,null,null,null,null,"左行列終了文字列１","</table>"]
[null,null,null,null,null,null,null,null,null,null,null,null,null,null,null,"左行列終了文字列２","<br>"]
[null,null,null,null,null,null,null,null,null,null,null,null,null,null,null,"右行列開始文字列１","右行列"]
[null,null,null,null,null,null,null,null,null,null,null,null,null,null,null,"右行列開始文字列２","<table cellspacing =\"8\">"]
[null,null,null,null,null,null,null,null,null,null,null,null,null,null,null,"右行列行頭文字列","<tr align=\"right\"><td>"]
[null,null,null,null,null,null,null,null,null,null,null,null,null,null,null,"右行列成分間文字列","</td><td>"]
[null,null,null,null,null,null,null,null,null,null,null,null,null,null,null,"右行列行末文字列","</td></tr>"]
[null,null,null,null,null,null,null,null,null,null,null,null,null,null,null,"左行列最終行末","</td></tr>"]
[null,null,null,null,null,null,null,null,null,null,null,null,null,null,null,"右行列終了文字列１","</table>"]
[null,null,null,null,null,null,null,null,null,null,null,null,null,null,null,"右行列終了文字列２","<br>"]
[null,null,null,null,null,null,null,null,null,null,null,null,null,null,null,"答行列開始文字列１","答行列"]
[null,null,null,null,null,null,null,null,null,null,null,null,null,null,null,"答行列開始文字列２","<table cellspacing =\"8\">"]
[null,null,null,null,null,null,null,null,null,null,null,null,null,null,null,"答行列行頭文字列","<tr align=\"right\"><td>"]
[null,null,null,null,null,null,null,null,null,null,null,null,null,null,null,"答行列成分間文字列","</td><td>"]
[null,null,null,null,null,null,null,null,null,null,null,null,null,null,null,"答行列行末文字列","</td></tr>"]
[null,null,null,null,null,null,null,null,null,null,null,null,null,null,null,"答行列最終行末","</td></tr>"]
[null,null,null,null,null,null,null,null,null,null,null,null,null,null,null,"答行列終了文字列１","</table>"]
[null,null,null,null,null,null,null,null,null,null,null,null,null,null,null,"答行列終了文字列２","<br>"]

{"sheet":"１行３列×３行１列","index":2,"n_rows":162,"n_cols":17,"rows_kept":162,"cut":false,"hidden":false,"merged":[]}
["行列の掛け算を説明します．",null,null,null,"左行数",1,"左列数",3,"右列数",1,null,"Macro",1,null,null,"S11 から右，下方向にかけてサンプル問題を作成します．"]
[null,"注意：青枠内の数値を変更しないこと，レッスンを中断はできません．最初からやり直しになります．",null,null,null,null,null,null,null,null,null,null,null,null,null,"１．行列の行，列数は １ 行目で指定のものを使います．"]
[null,"下の２つの行列の掛け算のやり方を説明します．",null,null,null,null,null,null,null,null,null,null,null,null,null,"２．成分 0 の比率は，左右行列の成分が 0 の比率を決めます．"]
[null,"右の 【レッスン開始】 ボタンを押してください．",null,null,null,null,null,null,null,null,null,null,null,null,null,"３．成分絶対値最大で要素絶対値の最大を決めます，その負数が最小になります．"]
[null,null,null,null,null,null,null,null,null,null,null,null,null,null,null,"４．問題数を負の数にすると，問題数は正符号の数だけ出し，行列をすべて縦方向に出します．LaTeX 形式では負の数にすること"]
["例題",{"$f":"\"左行列（\" & F1 &\" 行 \" &H1&\" 列）\"","v":"左行列（1 行 3 列）"},null,null,null,null,{"$f":"\"左行列（\" & H1 &\" 行 \" &J1&\" 列）\"","v":"左行列（3 行 1 列）"},null,null,null,null,null,null,null,null,"５．乱数初期値を 1 以上に設定すると，それに従った乱数で問題を作成します．"]
[null,-1,1,2,null,null,3]
[null,null,null,null,null,null,1]
[null,null,null,null,null,null,2]
[null,null,null,null,null,null,null,null,null,null,null,null,null,null,null,"問題作成時オプション"]
[null,null,null,null,null,null,null,null,null,null,null,null,null,null,null,"成分 0 の比率（％）",5]
["説明",null,null,null,null,null,null,null,null,null,null,null,null,null,null,"成分絶対値最大",3]
[null,null,null,null,null,null,null,null,null,null,null,null,null,null,null,"問題作成数",5]
[null,null,null,null,null,null,null,null,null,null,null,null,null,null,null,"乱数初期値",0]
[null,null,null,null,null,null,null,null,null,null,null,null,null,null,null,"問題開始文字列"]
[null,null,null,null,null,null,null,null,null,null,null,null,null,null,null,"問題番号左文字列","問題（"]
[null,null,null,null,null,null,null,null,null,null,null,null,null,null,null,"問題番号右文字列","）"]
[null,null,null,null,null,null,null,null,null,null,null,null,null,null,null,"左行列開始文字列１"]
[null,null,null,null,null,null,null,null,null,null,null,null,null,null,null,"左行列開始文字列２","左行列"]
[null,null,null,null,null,null,null,null,null,null,null,null,null,null,null,"左行列行頭文字列"]
[null,null,null,null,null,null,null,null,null,null,null,null,null,null,null,"左行列成分間文字列"]
[null,null,null,null,null,null,null,null,null,null,null,null,null,null,null,"左行列行末文字列"]
[null,null,null,null,null,null,null,null,null,null,null,null,null,null,null,"左行列最終行末"]
[null,null,null,null,null,null,null,null,null,null,null,null,null,null,null,"左行列終了文字列１"]
["解説をいれる場合，この行の下からいれてください．",null,null,null,null,null,null,null,null,null,null,null,null,null,null,"左行列終了文字列２"]
[null,null,null,null,null,null,null,null,null,null,null,null,null,null,null,"右行列開始文字列１"]
[null,null,null,null,null,null,null,null,null,null,null,null,null,null,null,"右行列開始文字列２","右行列"]
[null,null,null,null,null,null,null,null,null,null,null,null,null,null,null,"右行列行頭文字列"]
[null,null,null,null,null,null,null,null,null,null,null,null,null,null,null,"右行列成分間文字列"]
[null,null,null,null,null,null,null,null,null,null,null,null,null,null,null,"右行列行末文字列"]
[null,null,null,null,null,null,null,null,null,null,null,null,null,null,null,"左行列最終行末"]
[null,null,null,null,null,null,null,null,null,null,null,null,null,null,null,"右行列終了文字列１"]
[null,null,null,null,null,null,null,null,null,null,null,null,null,null,null,"右行列終了文字列２"]
[null,null,null,null,null,null,null,null,null,null,null,null,null,null,null,"答行列開始文字列１"]
[null,null,null,null,null,null,null,null,null,null,null,null,null,null,null,"答行列開始文字列２","答行列"]
[null,null,null,null,null,null,null,null,null,null,null,null,null,null,null,"答行列行頭文字列"]
[null,null,null,null,null,null,null,null,null,null,null,null,null,null,null,"答行列成分間文字列"]
[null,null,null,null,null,null,null,null,null,null,null,null,null,null,null,"答行列行末文字列"]
[null,null,null,null,null,null,null,null,null,null,null,null,null,null,null,"答行列最終行末"]
[null,null,null,null,null,null,null,null,null,null,null,null,null,null,null,"答行列終了文字列１"]
[null,null,null,null,null,null,null,null,null,null,null,null,null,null,null,"答行列終了文字列２"]
[]
[]
[]
[]
[null,null,null,null,null,null,null,null,null,null,null,null,null,null,null,"通常設定例"]
[null,null,null,null,null,null,null,null,null,null,null,null,null,null,null,"成分 0 の比率（％）",5]
[null,null,null,null,null,null,null,null,null,null,null,null,null,null,null,"成分絶対値最大",5]
[null,null,null,null,null,null,null,null,null,null,null,null,null,null,null,"問題作成数",5]
[null,null,null,null,null,null,null,null,null,null,null,null,null,null,null,"乱数初期値",0]
[null,null,null,null,null,null,null,null,null,null,null,null,null,null,null,"問題開始文字列"]
[null,null,null,null,null,null,null,null,null,null,null,null,null,null,null,"問題番号左文字列","問題（"]
[null,null,null,null,null,null,null,null,null,null,null,null,null,null,null,"問題番号右文字列","）"]
[null,null,null,null,null,null,null,null,null,null,null,null,null,null,null,"左行列開始文字列１"]
[null,null,null,null,null,null,null,null,null,null,null,null,null,null,null,"左行列開始文字列２","左行列"]
[null,null,null,null,null,null,null,null,null,null,null,null,null,null,null,"左行列行頭文字列"]
[null,null,null,null,null,null,null,null,null,null,null,null,null,null,null,"左行列成分間文字列"]
[null,null,null,null,null,null,null,null,null,null,null,null,null,null,null,"左行列行末文字列"]
[null,null,null,null,null,null,null,null,null,null,null,null,null,null,null,"左行列最終行末"]
[null,null,null,null,null,null,null,null,null,null,null,null,null,null,null,"左行列終了文字列１"]
[null,null,null,null,null,null,null,null,null,null,null,null,null,null,null,"左行列終了文字列２"]
[null,null,null,null,null,null,null,null,null,null,null,null,null,null,null,"右行列開始文字列１"]
[null,null,null,null,null,null,null,null,null,null,null,null,null,null,null,"右行列開始文字列２","右行列"]
[null,null,null,null,null,null,null,null,null,null,null,null,null,null,null,"右行列行頭文字列"]
[null,null,null,null,null,null,null,null,null,null,null,null,null,null,null,"右行列成分間文字列"]
[null,null,null,null,null,null,null,null,null,null,null,null,null,null,null,"右行列行末文字列"]
[null,null,null,null,null,null,null,null,null,null,null,null,null,null,null,"左行列最終行末"]
[null,null,null,null,null,null,null,null,null,null,null,null,null,null,null,"右行列終了文字列１"]
[null,null,null,null,null,null,null,null,null,null,null,null,null,null,null,"右行列終了文字列２"]
[null,null,null,null,null,null,null,null,null,null,null,null,null,null,null,"答行列開始文字列１"]
[null,null,null,null,null,null,null,null,null,null,null,null,null,null,null,"答行列開始文字列２","答行列"]
[null,null,null,null,null,null,null,null,null,null,null,null,null,null,null,"答行列行頭文字列"]
[null,null,null,null,null,null,null,null,null,null,null,null,null,null,null,"答行列成分間文字列"]
[null,null,null,null,null,null,null,null,null,null,null,null,null,null,null,"答行列行末文字列"]
[null,null,null,null,null,null,null,null,null,null,null,null,null,null,null,"答行列最終行末"]
[null,null,null,null,null,null,null,null,null,null,null,null,null,null,null,"答行列終了文字列１"]
[null,null,null,null,null,null,null,null,null,null,null,null,null,null,null,"答行列終了文字列２"]
[]
[]
[]
[]
[]
[]
[]
[]
[null,null,null,null,null,null,null,null,null,null,null,null,null,null,null,"LaTeX 用設定例","上にコピーして使ってください"]
[null,null,null,null,null,null,null,null,null,null,null,null,null,null,null,"成分 0 の比率（％）",5]
[null,null,null,null,null,null,null,null,null,null,null,null,null,null,null,"成分絶対値最大",5]
[null,null,null,null,null,null,null,null,null,null,null,null,null,null,null,"問題作成数",-5]
[null,null,null,null,null,null,null,null,null,null,null,null,null,null,null,"乱数初期値",0]
[null,null,null,null,null,null,null,null,null,null,null,null,null,null,null,"問題開始文字列",{"$f":"\"% problem (seed \" &$Q$14&\")\"","v":"% problem (seed 0)"}]
[null,null,null,null,null,null,null,null,null,null,null,null,null,null,null,"問題番号左文字列","{\\bf 問題"]
[null,null,null,null,null,null,null,null,null,null,null,null,null,null,null,"問題番号右文字列","}"]
[null,null,null,null,null,null,null,null,null,null,null,null,null,null,null,"左行列開始文字列１","% left"]
[null,null,null,null,null,null,null,null,null,null,null,null,null,null,null,"左行列開始文字列２",{"$f":"\"\\[\\left[\\begin{array}{*{\" & $H$1 & \"}{r}}\"","v":"\\[\\left[\\begin{array}{*{3}{r}}"}]
[null,null,null,null,null,null,null,null,null,null,null,null,null,null,null,"左行列行頭文字列"]
[null,null,null,null,null,null,null,null,null,null,null,null,null,null,null,"左行列成分間文字列"," & "]
[null,null,null,null,null,null,null,null,null,null,null,null,null,null,null,"左行列行末文字列"," \\\\"]
[null,null,null,null,null,null,null,null,null,null,null,null,null,null,null,"左行列最終行末"]
[null,null,null,null,null,null,null,null,null,null,null,null,null,null,null,"左行列終了文字列１","\\end{array}\\right]"]
[null,null,null,null,null,null,null,null,null,null,null,null,null,null,null,"左行列終了文字列２","%"]
[null,null,null,null,null,null,null,null,null,null,null,null,null,null,null,"右行列開始文字列１","% right"]
[null,null,null,null,null,null,null,null,null,null,null,null,null,null,null,"右行列開始文字列２",{"$f":"\"\\left[\\begin{array}{*{\" & $J$1 & \"}{r}}\"","v":"\\left[\\begin{array}{*{1}{r}}"}]
[null,null,null,null,null,null,null,null,null,null,null,null,null,null,null,"右行列行頭文字列"]
[null,null,null,null,null,null,null,null,null,null,null,null,null,null,null,"右行列成分間文字列"," & "]
[null,null,null,null,null,null,null,null,null,null,null,null,null,null,null,"右行列行末文字列"," \\\\"]
[null,null,null,null,null,null,null,null,null,null,null,null,null,null,null,"左行列最終行末"]
[null,null,null,null,null,null,null,null,null,null,null,null,null,null,null,"右行列終了文字列１","\\end{array}\\right]="]
[null,null,null,null,null,null,null,null,null,null,null,null,null,null,null,"右行列終了文字列２","%"]
[null,null,null,null,null,null,null,null,null,null,null,null,null,null,null,"答行列開始文字列１","% answer"]
[null,null,null,null,null,null,null,null,null,null,null,null,null,null,null,"答行列開始文字列２",{"$f":"\"\\ashow{\\left[\\begin{array}{*{\" & $J$1 & \"}{r}}\"","v":"\\ashow{\\left[\\begin{array}{*{1}{r}}"}]
[null,null,null,null,null,null,null,null,null,null,null,null,null,null,null,"答行列行頭文字列"]
[null,null,null,null,null,null,null,null,null,null,null,null,null,null,null,"答行列成分間文字列"," & "]
[null,null,null,null,null,null,null,null,null,null,null,null,null,null,null,"答行列行末文字列"," \\\\"]
[null,null,null,null,null,null,null,null,null,null,null,null,null,null,null,"答行列最終行末"]
[null,null,null,null,null,null,null,null,null,null,null,null,null,null,null,"答行列終了文字列１","\\end{array}\\right]}\\]"]
[null,null,null,null,null,null,null,null,null,null,null,null,null,null,null,"答行列終了文字列２","%%%%%"]
[]
[null,null,null,null,null,null,null,null,null,null,null,null,null,null,null,"上の定義で作ったものを \\begin{document} の下に張り付け"]
[null,null,null,null,null,null,null,null,null,null,null,null,null,null,null,"コマンド \\ashow の定義を以下のようにして，解答表示を制御します．"]
[null,null,null,null,null,null,null,null,null,null,null,null,null,null,null,"\\long\\def\\ashow#1{}"]
[null,null,null,null,null,null,null,null,null,null,null,null,null,null,null,"\\begin{document}"]
[null,null,null,null,null,null,null,null,null,null,null,null,null,null,null,"（問題）"]
[null,null,null,null,null,null,null,null,null,null,null,null,null,null,null,"とすれば解答なしのバージョンになり，"]
[null,null,null,null,null,null,null,null,null,null,null,null,null,null,null,"\\long\\def\\ashow#1{#1}"]
[null,null,null,null,null,null,null,null,null,null,null,null,null,null,null,"\\begin{document}"]
[null,null,null,null,null,null,null,null,null,null,null,null,null,null,null,"（問題）"]
[null,null,null,null,null,null,null,null,null,null,null,null,null,null,null,"とすれば解答ありのバージョンになります．"]
[]
[]
[null,null,null,null,null,null,null,null,null,null,null,null,null,null,null,"HTML 用設定例","上にコピーして使ってください"]
[null,null,null,null,null,null,null,null,null,null,null,null,null,null,null,"成分 0 の比率（％）",10]
[null,null,null,null,null,null,null,null,null,null,null,null,null,null,null,"成分絶対値最大",3]
[null,null,null,null,null,null,null,null,null,null,null,null,null,null,null,"問題作成数",-5]
[null,null,null,null,null,null,null,null,null,null,null,null,null,null,null,"乱数初期値",0]
[null,null,null,null,null,null,null,null,null,null,null,null,null,null,null,"問題開始文字列",{"$f":"\"<!-- problem (seed \" &$Q$14&\") -->\"","v":"<!-- problem (seed 0) -->"}]
[null,null,null,null,null,null,null,null,null,null,null,null,null,null,null,"問題番号左文字列","<b>問題"]
[null,null,null,null,null,null,null,null,null,null,null,null,null,null,null,"問題番号右文字列",".</b><br>"]
[null,null,null,null,null,null,null,null,null,null,null,null,null,null,null,"左行列開始文字列１","左行列"]
[null,null,null,null,null,null,null,null,null,null,null,null,null,null,null,"左行列開始文字列２","<table cellspacing =\"8\">"]
[null,null,null,null,null,null,null,null,null,null,null,null,null,null,null,"左行列行頭文字列","<tr align=\"right\"><td>"]
[null,null,null,null,null,null,null,null,null,null,null,null,null,null,null,"左行列成分間文字列","</td><td>"]
[null,null,null,null,null,null,null,null,null,null,null,null,null,null,null,"左行列行末文字列","</td></tr>"]
[null,null,null,null,null,null,null,null,null,null,null,null,null,null,null,"左行列最終行末","</td></tr>"]
[null,null,null,null,null,null,null,null,null,null,null,null,null,null,null,"左行列終了文字列１","</table>"]
[null,null,null,null,null,null,null,null,null,null,null,null,null,null,null,"左行列終了文字列２","<br>"]
[null,null,null,null,null,null,null,null,null,null,null,null,null,null,null,"右行列開始文字列１","右行列"]
[null,null,null,null,null,null,null,null,null,null,null,null,null,null,null,"右行列開始文字列２","<table cellspacing =\"8\">"]
[null,null,null,null,null,null,null,null,null,null,null,null,null,null,null,"右行列行頭文字列","<tr align=\"right\"><td>"]
[null,null,null,null,null,null,null,null,null,null,null,null,null,null,null,"右行列成分間文字列","</td><td>"]
[null,null,null,null,null,null,null,null,null,null,null,null,null,null,null,"右行列行末文字列","</td></tr>"]
[null,null,null,null,null,null,null,null,null,null,null,null,null,null,null,"左行列最終行末","</td></tr>"]
[null,null,null,null,null,null,null,null,null,null,null,null,null,null,null,"右行列終了文字列１","</table>"]
[null,null,null,null,null,null,null,null,null,null,null,null,null,null,null,"右行列終了文字列２","<br>"]
[null,null,null,null,null,null,null,null,null,null,null,null,null,null,null,"答行列開始文字列１","答行列"]
[null,null,null,null,null,null,null,null,null,null,null,null,null,null,null,"答行列開始文字列２","<table cellspacing =\"8\">"]
[null,null,null,null,null,null,null,null,null,null,null,null,null,null,null,"答行列行頭文字列","<tr align=\"right\"><td>"]
[null,null,null,null,null,null,null,null,null,null,null,null,null,null,null,"答行列成分間文字列","</td><td>"]
[null,null,null,null,null,null,null,null,null,null,null,null,null,null,null,"答行列行末文字列","</td></tr>"]
[null,null,null,null,null,null,null,null,null,null,null,null,null,null,null,"答行列最終行末","</td></tr>"]
[null,null,null,null,null,null,null,null,null,null,null,null,null,null,null,"答行列終了文字列１","</table>"]
[null,null,null,null,null,null,null,null,null,null,null,null,null,null,null,"答行列終了文字列２","<br>"]

{"sheet":"例題作成方法","index":3,"n_rows":34,"n_cols":2,"rows_kept":34,"cut":false,"hidden":false,"merged":[]}
["例題作成には 「掛け算説明初期シート」（非表示シート，シートのタブを右クリックして，再表示で表示） をコピーし，"]
["F1, H1, J1 に行列の行数，列数をいれます．"]
["(右行列の行数は 左行列の列数となります）"]
["（「青枠内の数値を変更しないこと」，は学生に対する注意です．）"]
[]
["そのあと，B7, G7 を１行１列成分として，"]
["行列の成分を入力します（整数のみ）"]
["いったん他のシートにうつり，"]
["もとにもどると演習ができるようになります．"]
[]
["セル L11 の Macro の横の M11 を  -1 にするとイベントマクロを無効にします．"]
[]
[]
[]
["サンプル問題を乱数で発生させる方法が P 列からありますので，"]
["問題生成に利用できます．LaTeX のコードにすることもできます．"]
["学生に演習を実行させるときには非表示にしておいてください．"]
[]
[]
[]
[]
[]
[]
[]
[]
[]
[]
[]
[]
[]
[]
[]
["2015-12-01","マクロのコメント変更"]
["2015-12-02","スタート時 マクロフラグ 1 にする．"]

{"sheet":"Sheet3","index":4,"n_rows":0,"n_cols":0,"rows_kept":0,"cut":false,"hidden":false,"merged":[]}